[Event "Titled Tuesday Blitz June 20 Early 2023"]
[White "chess123456s"]
[Black "Fus, Jakub"]
[BlackFideId "1193023"]
[WhiteElo "2539"]
[BlackElo "2335"]
[Result "1/2-1/2"]
[Round "10"]
[TimeControl "180+2"]
[Date "2023.06.20"]
[WhiteClock "0:00:20"]
[BlackClock "0:00:07"]
[Board "49"]

1. e4 {[%clk 0:03:00]}  e5 {[%clk 0:02:56]} 2. Nf3 {[%clk 0:03:00]}  Nc6 {[%clk 0:02:57]} 3. Bc4 {[%clk 0:03:00]}  Bc5 {[%clk 0:02:57]} 4. c3 {[%clk 0:03:01]}  Nf6 {[%clk 0:02:57]} 5. d3 {[%clk 0:03:01]}  d6 {[%clk 0:02:55]} 6. O-O {[%clk 0:03:01]}  h6 {[%clk 0:02:55]} 7. Nbd2 {[%clk 0:03:02]}  O-O {[%clk 0:02:55]} 8. h3 {[%clk 0:03:00]}  a5 {[%clk 0:02:55]} 9. Re1 {[%clk 0:02:59]}  Re8 {[%clk 0:02:50]} 10. Nf1 {[%clk 0:02:57]}  Bb6 {[%clk 0:02:41]} 11. Ng3 {[%clk 0:02:55]}  Be6 {[%clk 0:02:39]} 12. Bb5 {[%clk 0:02:55]}  Bd7 {[%clk 0:02:27]} 13. d4 {[%clk 0:02:52]}  Ne7 {[%clk 0:02:10]} 14. Bd3 {[%clk 0:02:29]}  Ng6 {[%clk 0:02:05]} 15. Be3 {[%clk 0:02:27]}  c6 {[%clk 0:01:33]} 16. Qd2 {[%clk 0:02:23]}  d5 {[%clk 0:01:23]} 17. Nxe5 {[%clk 0:02:00]}  Nxe5 {[%clk 0:00:54]} 18. dxe5 {[%clk 0:02:00]}  Rxe5 {[%clk 0:00:47]} 19. f4 {[%clk 0:01:53]}  Re8 {[%clk 0:00:42]} 20. e5 {[%clk 0:01:51]}  Ne4 {[%clk 0:00:31]} 21. Nxe4 {[%clk 0:01:46]}  dxe4 {[%clk 0:00:31]} 22. Bxe4 {[%clk 0:01:47]}  Be6 {[%clk 0:00:23]} 23. Qxd8 {[%clk 0:01:38]}  Bxe3+ {[%clk 0:00:22]} 24. Rxe3 {[%clk 0:01:39]}  Raxd8 {[%clk 0:00:23]} 25. Re2 {[%clk 0:01:27]}  g6 {[%clk 0:00:19]} 26. b3 {[%clk 0:01:17]}  h5 {[%clk 0:00:19]} 27. Kf2 {[%clk 0:01:15]}  Rd7 {[%clk 0:00:17]} 28. Ke3 {[%clk 0:01:10]}  Red8 {[%clk 0:00:17]} 29. Bc2 {[%clk 0:01:07]}  Rd5 {[%clk 0:00:15]} 30. Ree1 {[%clk 0:01:02]}  Rc5 {[%clk 0:00:14]} 31. c4 {[%clk 0:00:54]}  b5 {[%clk 0:00:14]} 32. Rad1 {[%clk 0:00:38]}  Rxd1 {[%clk 0:00:15]} 33. Rxd1 {[%clk 0:00:35]}  bxc4 {[%clk 0:00:16]} 34. bxc4 {[%clk 0:00:32]}  Rxc4 {[%clk 0:00:17]} 35. Bb3 {[%clk 0:00:30]}  Rc3+ {[%clk 0:00:16]} 36. Kd4 {[%clk 0:00:29]}  Rg3 {[%clk 0:00:15]} 37. Bxe6 {[%clk 0:00:30]}  fxe6 {[%clk 0:00:16]} 38. Rd2 {[%clk 0:00:30]}  g5 {[%clk 0:00:10]} 39. fxg5 {[%clk 0:00:28]}  Rxg5 {[%clk 0:00:11]} 40. Rc2 {[%clk 0:00:27]}  Kf7 {[%clk 0:00:10]} 41. Re2 {[%clk 0:00:25]}  Ke7 {[%clk 0:00:09]} 42. Kc5 {[%clk 0:00:25]}  Kd7 {[%clk 0:00:10]} 43. Kb6 {[%clk 0:00:25]}  a4 {[%clk 0:00:09]} 44. Rd2+ {[%clk 0:00:20]}  Ke7 {[%clk 0:00:08]} 45. Kxc6 {[%clk 0:00:20]}  Rxe5 {[%clk 0:00:08]} 46. Rd4 {[%clk 0:00:21]}  Re2 {[%clk 0:00:04]} 47. Rxa4 {[%clk 0:00:21]}  Rxg2 {[%clk 0:00:04]} 48. Rh4 {[%clk 0:00:20]}  Rg5 {[%clk 0:00:03]} 49. a4 {[%clk 0:00:21]}  e5 {[%clk 0:00:04]} 50. Kd5 {[%clk 0:00:20]}  Kf6 {[%clk 0:00:04]} 51. Re4 {[%clk 0:00:20]}  Rg1 {[%clk 0:00:03]} 52. a5 {[%clk 0:00:19]}  Rd1+ {[%clk 0:00:04]} 53. Kc6 {[%clk 0:00:19]}  Kf5 {[%clk 0:00:05]} 54. Re2 {[%clk 0:00:19]}  e4 {[%clk 0:00:05]} 55. a6 {[%clk 0:00:18]}  Rc1+ {[%clk 0:00:05]} 56. Kb7 {[%clk 0:00:19]}  Rb1+ {[%clk 0:00:06]} 57. Kc7 {[%clk 0:00:19]}  Rc1+ {[%clk 0:00:06]} 58. Kb7 {[%clk 0:00:19]}  Rb1+ {[%clk 0:00:07]} 59. Kc7 {[%clk 0:00:20]}  Rc1+ {[%clk 0:00:07]} 60. Kb7 {[%clk 0:00:20]} 1/2-1/2


[Site "https://www.chess.com"]

[Event "Titled Tuesday Blitz June 20 Early 2023"]
[White "Turzo, Attila"]
[Black "Ajay Karthikeyan"]
[WhiteFideId "704954"]
[BlackFideId "35011685"]
[WhiteElo "2535"]
[BlackElo "2321"]
[Result "0-1"]
[Round "10"]
[TimeControl "180+2"]
[Date "2023.06.20"]
[WhiteClock "0:00:53"]
[BlackClock "0:02:22"]
[Board "50"]

1. d4 {[%clk 0:03:00]}  Nf6 {[%clk 0:02:57]} 2. c4 {[%clk 0:03:01]}  c5 {[%clk 0:02:57]} 3. d5 {[%clk 0:03:01]}  b5 {[%clk 0:02:57]} 4. cxb5 {[%clk 0:03:01]}  a6 {[%clk 0:02:58]} 5. bxa6 {[%clk 0:03:01]}  g6 {[%clk 0:02:57]} 6. g3 {[%clk 0:03:01]}  Bg7 {[%clk 0:02:57]} 7. Bg2 {[%clk 0:03:02]}  d6 {[%clk 0:02:57]} 8. Nh3 {[%clk 0:03:00]}  O-O {[%clk 0:02:57]} 9. O-O {[%clk 0:03:01]}  Bxa6 {[%clk 0:02:57]} 10. Nc3 {[%clk 0:03:00]}  Nbd7 {[%clk 0:02:57]} 11. Nf4 {[%clk 0:03:00]}  Qa5 {[%clk 0:02:53]} 12. Rb1 {[%clk 0:03:00]}  Rfb8 {[%clk 0:02:53]} 13. Bd2 {[%clk 0:03:00]}  Ne5 {[%clk 0:02:51]} 14. b3 {[%clk 0:02:58]}  Bc8 {[%clk 0:02:49]} 15. a4 {[%clk 0:02:56]}  Bf5 {[%clk 0:02:48]} 16. e4 {[%clk 0:02:54]}  Bg4 {[%clk 0:02:48]} 17. f3 {[%clk 0:02:38]}  Bd7 {[%clk 0:02:45]} 18. Qc2 {[%clk 0:02:26]}  Qa6 {[%clk 0:02:39]} 19. Rfc1 {[%clk 0:02:21]}  c4 {[%clk 0:02:35]} 20. b4 {[%clk 0:02:04]}  Bxa4 {[%clk 0:02:31]} 21. Nxa4 {[%clk 0:02:02]}  Qxa4 {[%clk 0:02:32]} 22. Qxa4 {[%clk 0:01:59]}  Rxa4 {[%clk 0:02:33]} 23. Bc3 {[%clk 0:01:58]}  Nfd7 {[%clk 0:02:30]} 24. h4 {[%clk 0:01:47]}  Ra3 {[%clk 0:02:28]} 25. Bxe5 {[%clk 0:01:36]}  Nxe5 {[%clk 0:02:27]} 26. b5 {[%clk 0:01:36]}  Rb3 {[%clk 0:02:24]} 27. Rxb3 {[%clk 0:01:06]}  cxb3 {[%clk 0:02:25]} 28. Bf1 {[%clk 0:01:06]}  Nxf3+ {[%clk 0:02:23]} 29. Kf2 {[%clk 0:01:07]}  b2 {[%clk 0:02:22]} 30. Rb1 {[%clk 0:01:01]}  Nd2 {[%clk 0:02:22]} 31. Bd3 {[%clk 0:01:01]}  Nxb1 {[%clk 0:02:21]} 32. Bxb1 {[%clk 0:01:02]}  Rxb5 {[%clk 0:02:21]} 33. Nd3 {[%clk 0:01:03]}  Ra5 {[%clk 0:02:21]} 34. Ke2 {[%clk 0:01:03]}  Ra1 {[%clk 0:02:22]} 35. Bc2 {[%clk 0:01:00]}  b1=Q {[%clk 0:02:20]} 36. Bxb1 {[%clk 0:00:57]}  Rxb1 {[%clk 0:02:21]} 37. e5 {[%clk 0:00:57]}  Bxe5 {[%clk 0:02:21]} 38. Nxe5 {[%clk 0:00:53]}  dxe5 {[%clk 0:02:22]} 0-1


[Site "https://www.chess.com"]

[Event "Titled Tuesday Blitz June 20 Early 2023"]
[White "Yelisieiev, Yevhenii"]
[Black "Goryachkina, Aleksandra"]
[WhiteFideId "14139642"]
[BlackFideId "4147103"]
[WhiteElo "2403"]
[BlackElo "2471"]
[Result "0-1"]
[Round "10"]
[TimeControl "180+2"]
[Date "2023.06.20"]
[WhiteClock "0:00:00"]
[BlackClock "0:01:00"]
[Board "51"]

1. d4 {[%clk 0:01:31]}  Nf6 {[%clk 0:02:57]} 2. Nf3 {[%clk 0:01:32]}  d5 {[%clk 0:02:57]} 3. c4 {[%clk 0:01:31]}  e6 {[%clk 0:02:57]} 4. Nc3 {[%clk 0:01:31]}  Nbd7 {[%clk 0:02:57]} 5. Bg5 {[%clk 0:01:23]}  h6 {[%clk 0:02:56]} 6. Bh4 {[%clk 0:01:23]}  Be7 {[%clk 0:02:56]} 7. e3 {[%clk 0:01:22]}  O-O {[%clk 0:02:56]} 8. Qc2 {[%clk 0:01:23]}  a6 {[%clk 0:02:53]} 9. cxd5 {[%clk 0:01:22]}  exd5 {[%clk 0:02:53]} 10. Bd3 {[%clk 0:01:22]}  c6 {[%clk 0:02:53]} 11. O-O {[%clk 0:01:22]}  Re8 {[%clk 0:02:52]} 12. Rfe1 {[%clk 0:01:18]}  Nf8 {[%clk 0:02:52]} 13. h3 {[%clk 0:01:16]}  Ne4 {[%clk 0:02:39]} 14. Bxe7 {[%clk 0:01:14]}  Qxe7 {[%clk 0:02:39]} 15. Bxe4 {[%clk 0:01:07]}  dxe4 {[%clk 0:02:38]} 16. Nd2 {[%clk 0:01:08]}  f5 {[%clk 0:02:37]} 17. d5 {[%clk 0:01:00]}  Ng6 {[%clk 0:02:04]} 18. Nc4 {[%clk 0:00:55]}  Qg5 {[%clk 0:01:51]} 19. g3 {[%clk 0:00:43]}  Qh5 {[%clk 0:01:32]} 20. Nd6 {[%clk 0:00:28]}  Qxh3 {[%clk 0:01:18]} 21. Nxe8 {[%clk 0:00:21]}  Ne5 {[%clk 0:01:16]} 22. f4 {[%clk 0:00:03]}  Nf3+ {[%clk 0:01:16]} 23. Kf2 {[%clk 0:00:02]}  Qh2+ {[%clk 0:01:16]} 24. Kf1 {[%clk 0:00:03]}  Qxc2 {[%clk 0:01:13]} 25. Re2 {[%clk 0:00:03]}  Qd3 {[%clk 0:01:03]} 26. Rd1 {[%clk 0:00:03]}  Qc4 {[%clk 0:01:03]} 27. Nd6 {[%clk 0:00:03]}  Qc5 {[%clk 0:01:03]} 28. Nxc8 {[%clk 0:00:02]}  Rxc8 {[%clk 0:01:02]} 29. d6 {[%clk 0:00:03]}  Rd8 {[%clk 0:01:01]} 30. d7 {[%clk 0:00:00]}  Qe7 {[%clk 0:01:00]} 0-1


[Site "https://www.chess.com"]

[Event "Titled Tuesday Blitz June 20 Early 2023"]
[White "Shapiro, Viktor"]
[Black "Koshulyan, Egor A."]
[WhiteFideId "4175700"]
[BlackFideId "24237000"]
[WhiteElo "2212"]
[BlackElo "2216"]
[Result "0-1"]
[Round "10"]
[TimeControl "180+2"]
[Date "2023.06.20"]
[WhiteClock "0:00:09"]
[BlackClock "0:00:14"]
[Board "53"]

1. c4 {[%clk 0:03:00]}  e6 {[%clk 0:02:58]} 2. Nc3 {[%clk 0:03:00]}  d5 {[%clk 0:02:58]} 3. d4 {[%clk 0:03:01]}  Nf6 {[%clk 0:02:58]} 4. Nf3 {[%clk 0:03:01]}  c6 {[%clk 0:02:58]} 5. Bg5 {[%clk 0:03:01]}  h6 {[%clk 0:02:57]} 6. Bh4 {[%clk 0:03:01]}  Be7 {[%clk 0:02:56]} 7. e3 {[%clk 0:03:01]}  Nbd7 {[%clk 0:02:55]} 8. Qc2 {[%clk 0:03:01]}  Ne4 {[%clk 0:02:54]} 9. Bxe7 {[%clk 0:02:59]}  Qxe7 {[%clk 0:02:54]} 10. Nxe4 {[%clk 0:02:58]}  dxe4 {[%clk 0:02:52]} 11. Qxe4 {[%clk 0:02:52]}  Qb4+ {[%clk 0:02:52]} 12. Nd2 {[%clk 0:02:52]}  Qxb2 {[%clk 0:02:52]} 13. Qb1 {[%clk 0:02:45]}  Qc3 {[%clk 0:02:48]} 14. Qc1 {[%clk 0:02:45]}  Qa5 {[%clk 0:02:45]} 15. Bd3 {[%clk 0:02:43]}  e5 {[%clk 0:02:45]} 16. O-O {[%clk 0:02:41]}  exd4 {[%clk 0:02:44]} 17. exd4 {[%clk 0:02:41]}  O-O {[%clk 0:02:44]} 18. Ne4 {[%clk 0:02:36]}  Nb6 {[%clk 0:02:36]} 19. c5 {[%clk 0:02:24]}  Nd5 {[%clk 0:02:33]} 20. Nd6 {[%clk 0:02:22]}  Qc7 {[%clk 0:02:31]} 21. Re1 {[%clk 0:02:13]}  b6 {[%clk 0:02:27]} 22. Bc4 {[%clk 0:02:08]}  Be6 {[%clk 0:02:25]} 23. Bb3 {[%clk 0:01:56]}  Rad8 {[%clk 0:02:23]} 24. Re5 {[%clk 0:01:42]}  Nb4 {[%clk 0:01:40]} 25. Rxe6 {[%clk 0:01:28]}  fxe6 {[%clk 0:01:38]} 26. Bxe6+ {[%clk 0:01:28]}  Kh8 {[%clk 0:01:38]} 27. Qc4 {[%clk 0:01:24]}  bxc5 {[%clk 0:01:32]} 28. dxc5 {[%clk 0:01:23]}  Nd5 {[%clk 0:01:32]} 29. Bxd5 {[%clk 0:01:22]}  cxd5 {[%clk 0:01:33]} 30. Qxd5 {[%clk 0:01:22]}  Qe7 {[%clk 0:01:30]} 31. g3 {[%clk 0:01:05]}  Qf6 {[%clk 0:01:23]} 32. Rf1 {[%clk 0:01:03]}  Rd7 {[%clk 0:01:22]} 33. f4 {[%clk 0:00:48]}  Qc3 {[%clk 0:01:03]} 34. Rd1 {[%clk 0:00:41]}  Rc7 {[%clk 0:00:53]} 35. Ne4 {[%clk 0:00:37]}  Qe3+ {[%clk 0:00:53]} 36. Kg2 {[%clk 0:00:31]}  Qe2+ {[%clk 0:00:44]} 37. Kh3 {[%clk 0:00:31]}  Re7 {[%clk 0:00:29]} 38. Nd6 {[%clk 0:00:20]}  Rc7 {[%clk 0:00:23]} 39. Rd4 {[%clk 0:00:15]}  Qf1+ {[%clk 0:00:22]} 40. Kh4 {[%clk 0:00:15]}  Qf2 {[%clk 0:00:21]} 41. h3 {[%clk 0:00:13]}  Re7 {[%clk 0:00:18]} 42. Re4 {[%clk 0:00:13]}  Rxe4 {[%clk 0:00:17]} 43. Nxe4 {[%clk 0:00:12]}  Rxf4+ {[%clk 0:00:17]} 44. Kh5 {[%clk 0:00:12]}  Qf3+ {[%clk 0:00:17]} 45. g4 {[%clk 0:00:11]}  Qxe4 {[%clk 0:00:15]} 46. Qd8+ {[%clk 0:00:09]}  Kh7 {[%clk 0:00:15]} 47. Qd6 {[%clk 0:00:09]}  g6+ {[%clk 0:00:14]} 48. Kh4 {[%clk 0:00:09]}  Qe1# {[%clk 0:00:14]} 0-1


[Site "https://www.chess.com"]

[Event "Titled Tuesday Blitz June 20 Early 2023"]
[White "Jovic, Stanoje"]
[Black "Souleidis, Georgios"]
[WhiteFideId "905020"]
[BlackFideId "4206827"]
[WhiteElo "2236"]
[BlackElo "2401"]
[Result "1-0"]
[Round "10"]
[TimeControl "180+2"]
[Date "2023.06.20"]
[WhiteClock "0:01:19"]
[BlackClock "0:00:00"]
[Board "55"]

1. c4 {[%clk 0:03:00]}  e5 {[%clk 0:03:00]} 2. g3 {[%clk 0:03:01]}  Nc6 {[%clk 0:03:00]} 3. Bg2 {[%clk 0:03:01]}  Bc5 {[%clk 0:03:00]} 4. Nc3 {[%clk 0:02:59]}  a6 {[%clk 0:03:00]} 5. Nf3 {[%clk 0:02:57]}  d6 {[%clk 0:03:00]} 6. e3 {[%clk 0:02:57]}  Nf6 {[%clk 0:02:54]} 7. d4 {[%clk 0:02:57]}  Bb4 {[%clk 0:02:55]} 8. O-O {[%clk 0:02:55]}  Bxc3 {[%clk 0:02:50]} 9. bxc3 {[%clk 0:02:55]}  O-O {[%clk 0:02:51]} 10. Ba3 {[%clk 0:02:52]}  Re8 {[%clk 0:02:50]} 11. Rb1 {[%clk 0:02:52]}  Bd7 {[%clk 0:02:17]} 12. h3 {[%clk 0:02:47]}  Rb8 {[%clk 0:02:09]} 13. Nd2 {[%clk 0:02:41]}  h6 {[%clk 0:02:02]} 14. Qc2 {[%clk 0:02:40]}  Qc8 {[%clk 0:02:02]} 15. Kh2 {[%clk 0:02:38]}  Ne7 {[%clk 0:01:55]} 16. c5 {[%clk 0:02:33]}  exd4 {[%clk 0:01:22]} 17. cxd4 {[%clk 0:02:32]}  dxc5 {[%clk 0:01:22]} 18. Qxc5 {[%clk 0:02:27]}  Bc6 {[%clk 0:01:18]} 19. Rfc1 {[%clk 0:02:13]}  Bxg2 {[%clk 0:01:18]} 20. Kxg2 {[%clk 0:02:14]}  c6 {[%clk 0:01:15]} 21. Nc4 {[%clk 0:02:07]}  Qd7 {[%clk 0:01:08]} 22. Nd6 {[%clk 0:02:04]}  Red8 {[%clk 0:00:34]} 23. Nxb7 {[%clk 0:01:56]}  Rxb7 {[%clk 0:00:34]} 24. Rxb7 {[%clk 0:01:56]}  Qxb7 {[%clk 0:00:35]} 25. Qxe7 {[%clk 0:01:53]}  Rd7 {[%clk 0:00:35]} 26. Qc5 {[%clk 0:01:48]}  Rc7 {[%clk 0:00:35]} 27. Rc2 {[%clk 0:01:39]}  Ne4 {[%clk 0:00:34]} 28. Qf8+ {[%clk 0:01:35]}  Kh7 {[%clk 0:00:34]} 29. Rb2 {[%clk 0:01:34]}  Qa7 {[%clk 0:00:21]} 30. Rb8 {[%clk 0:01:30]}  Nf6 {[%clk 0:00:21]} 31. Bc5 {[%clk 0:01:28]}  Rc8 {[%clk 0:00:01]} 32. Bxa7 {[%clk 0:01:19]}  Rxf8 {[%clk 0:00:00]} 33. Rxf8 {[%clk 0:01:19]} 1-0


[Site "https://www.chess.com"]

[Event "Titled Tuesday Blitz June 20 Early 2023"]
[White "Goltsev, Dmitry"]
[Black "Sebag, Marie"]
[WhiteFideId "24176710"]
[BlackFideId "617822"]
[WhiteElo "2356"]
[BlackElo "2431"]
[Result "1-0"]
[Round "10"]
[TimeControl "180+2"]
[Date "2023.06.20"]
[WhiteClock "0:01:43"]
[BlackClock "0:00:00"]
[Board "57"]

1. e4 {[%clk 0:02:59]}  e5 {[%clk 0:02:57]} 2. Nf3 {[%clk 0:02:59]}  Nc6 {[%clk 0:02:57]} 3. Bb5 {[%clk 0:02:59]}  Nf6 {[%clk 0:02:55]} 4. O-O {[%clk 0:02:59]}  Nxe4 {[%clk 0:02:54]} 5. d4 {[%clk 0:03:00]}  Nd6 {[%clk 0:02:54]} 6. Bxc6 {[%clk 0:03:00]}  dxc6 {[%clk 0:02:54]} 7. dxe5 {[%clk 0:03:01]}  Nf5 {[%clk 0:02:54]} 8. Qxd8+ {[%clk 0:03:02]}  Kxd8 {[%clk 0:02:54]} 9. Rd1+ {[%clk 0:03:03]}  Ke8 {[%clk 0:02:53]} 10. Bg5 {[%clk 0:03:04]}  Be6 {[%clk 0:02:47]} 11. Nc3 {[%clk 0:03:04]}  Be7 {[%clk 0:02:47]} 12. Rd2 {[%clk 0:03:01]}  h6 {[%clk 0:02:47]} 13. Bxe7 {[%clk 0:03:01]}  Kxe7 {[%clk 0:02:47]} 14. g4 {[%clk 0:03:01]}  Rad8 {[%clk 0:02:25]} 15. gxf5 {[%clk 0:02:59]}  Bxf5 {[%clk 0:02:25]} 16. Rad1 {[%clk 0:02:55]}  Rxd2 {[%clk 0:02:24]} 17. Rxd2 {[%clk 0:02:56]}  g5 {[%clk 0:02:24]} 18. Nd4 {[%clk 0:02:54]}  Bg6 {[%clk 0:02:23]} 19. Kg2 {[%clk 0:02:49]}  Rd8 {[%clk 0:02:20]} 20. Nb3 {[%clk 0:02:41]}  Rxd2 {[%clk 0:02:12]} 21. Nxd2 {[%clk 0:02:42]}  Bxc2 {[%clk 0:02:11]} 22. Kg3 {[%clk 0:02:39]}  Ke6 {[%clk 0:02:10]} 23. f4 {[%clk 0:02:39]}  Kf5 {[%clk 0:02:09]} 24. fxg5 {[%clk 0:02:35]}  hxg5 {[%clk 0:02:09]} 25. Nf3 {[%clk 0:02:35]}  Bd3 {[%clk 0:01:58]} 26. Nd1 {[%clk 0:02:20]}  c5 {[%clk 0:01:29]} 27. Nf2 {[%clk 0:02:13]}  Be2 {[%clk 0:01:16]} 28. Ng4 {[%clk 0:02:06]}  Ke4 {[%clk 0:01:04]} 29. Nxg5+ {[%clk 0:02:03]}  Kd3 {[%clk 0:01:00]} 30. Nxf7 {[%clk 0:01:58]}  Kc2 {[%clk 0:00:59]} 31. e6 {[%clk 0:01:57]}  Kxb2 {[%clk 0:00:54]} 32. e7 {[%clk 0:01:53]}  Bb5 {[%clk 0:00:54]} 33. Nfe5 {[%clk 0:01:49]}  Kc3 {[%clk 0:00:44]} 34. h4 {[%clk 0:01:48]}  c4 {[%clk 0:00:40]} 35. h5 {[%clk 0:01:48]}  Kd4 {[%clk 0:00:40]} 36. Nxc4 {[%clk 0:01:43]}  Kxc4 {[%clk 0:00:00]} 37. h6 {[%clk 0:01:43]} 1-0


[Site "https://www.chess.com"]

[Event "Titled Tuesday Blitz June 20 Early 2023"]
[White "Girya, Olga"]
[Black "Cherniaiev, Tykhon"]
[WhiteFideId "4195752"]
[BlackFideId "14182360"]
[WhiteElo "2263"]
[BlackElo "2450"]
[Result "1-0"]
[Round "10"]
[TimeControl "180+2"]
[Date "2023.06.20"]
[WhiteClock "0:00:09"]
[BlackClock "0:00:18"]
[Board "58"]

1. d4 {[%clk 0:03:00]}  Nf6 {[%clk 0:03:00]} 2. Nf3 {[%clk 0:03:00]}  e6 {[%clk 0:03:00]} 3. c4 {[%clk 0:03:00]}  d5 {[%clk 0:02:59]} 4. Nc3 {[%clk 0:03:00]}  Be7 {[%clk 0:02:59]} 5. Bf4 {[%clk 0:02:59]}  O-O {[%clk 0:02:59]} 6. e3 {[%clk 0:03:00]}  c5 {[%clk 0:02:58]} 7. cxd5 {[%clk 0:02:59]}  exd5 {[%clk 0:02:58]} 8. dxc5 {[%clk 0:02:51]}  Bxc5 {[%clk 0:02:59]} 9. Be2 {[%clk 0:02:51]}  Nc6 {[%clk 0:02:58]} 10. O-O {[%clk 0:02:49]}  Be6 {[%clk 0:02:58]} 11. Rc1 {[%clk 0:02:48]}  Bd6 {[%clk 0:02:45]} 12. Bxd6 {[%clk 0:02:47]}  Qxd6 {[%clk 0:02:46]} 13. Nd4 {[%clk 0:02:33]}  a6 {[%clk 0:02:43]} 14. Bf3 {[%clk 0:02:20]}  Ne5 {[%clk 0:02:40]} 15. Nce2 {[%clk 0:02:05]}  Rfc8 {[%clk 0:02:34]} 16. Qb3 {[%clk 0:01:52]}  b5 {[%clk 0:02:31]} 17. Nf4 {[%clk 0:01:47]}  Nc4 {[%clk 0:02:30]} 18. Rcd1 {[%clk 0:01:46]}  Rd8 {[%clk 0:02:17]} 19. Qc2 {[%clk 0:01:34]}  Rac8 {[%clk 0:02:16]} 20. Qe2 {[%clk 0:01:31]}  Ne5 {[%clk 0:02:10]} 21. h3 {[%clk 0:01:27]}  h6 {[%clk 0:02:02]} 22. Rc1 {[%clk 0:01:23]}  Nc4 {[%clk 0:01:56]} 23. Rfd1 {[%clk 0:01:18]}  Qe7 {[%clk 0:01:39]} 24. b3 {[%clk 0:01:08]}  Ne5 {[%clk 0:01:38]} 25. Qb2 {[%clk 0:01:07]}  Qd6 {[%clk 0:01:19]} 26. Rxc8 {[%clk 0:00:54]}  Rxc8 {[%clk 0:01:20]} 27. Rc1 {[%clk 0:00:53]}  Rd8 {[%clk 0:01:10]} 28. Qc2 {[%clk 0:00:43]}  Rc8 {[%clk 0:01:02]} 29. Qb2 {[%clk 0:00:43]}  Rd8 {[%clk 0:01:02]} 30. Qc2 {[%clk 0:00:43]}  Rc8 {[%clk 0:00:44]} 31. Qd1 {[%clk 0:00:42]}  Rd8 {[%clk 0:00:40]} 32. Nd3 {[%clk 0:00:36]}  Nxf3+ {[%clk 0:00:33]} 33. Qxf3 {[%clk 0:00:35]}  Qa3 {[%clk 0:00:30]} 34. Qe2 {[%clk 0:00:34]}  Re8 {[%clk 0:00:29]} 35. Qb2 {[%clk 0:00:33]}  Qa5 {[%clk 0:00:27]} 36. Nc5 {[%clk 0:00:33]}  Bc8 {[%clk 0:00:26]} 37. b4 {[%clk 0:00:33]}  Qb6 {[%clk 0:00:23]} 38. Nd3 {[%clk 0:00:33]}  Ne4 {[%clk 0:00:21]} 39. Rc6 {[%clk 0:00:31]}  Qd8 {[%clk 0:00:21]} 40. Qc2 {[%clk 0:00:28]}  Bd7 {[%clk 0:00:20]} 41. Rc7 {[%clk 0:00:27]}  Nd6 {[%clk 0:00:19]} 42. Nc6 {[%clk 0:00:20]}  Bxc6 {[%clk 0:00:15]} 43. Qxc6 {[%clk 0:00:19]}  Ne4 {[%clk 0:00:11]} 44. Rd7 {[%clk 0:00:10]}  Qb8 {[%clk 0:00:11]} 45. Qxd5 {[%clk 0:00:07]}  Ng5 {[%clk 0:00:12]} 46. h4 {[%clk 0:00:06]}  Ne6 {[%clk 0:00:12]} 47. Ne5 {[%clk 0:00:05]}  Rd8 {[%clk 0:00:05]} 48. Nc6 {[%clk 0:00:05]}  Rxd7 {[%clk 0:00:05]} 49. Qxd7 {[%clk 0:00:05]}  Qf8 {[%clk 0:00:03]} 50. Ne7+ {[%clk 0:00:04]}  Kh8 {[%clk 0:00:03]} 51. Nd5 {[%clk 0:00:05]}  g6 {[%clk 0:00:03]} 52. Qe7 {[%clk 0:00:05]}  Qg7 {[%clk 0:00:03]} 53. Qf6 {[%clk 0:00:05]}  Kg8 {[%clk 0:00:03]} 54. Qxg7+ {[%clk 0:00:05]}  Kxg7 {[%clk 0:00:04]} 55. f3 {[%clk 0:00:04]}  f5 {[%clk 0:00:05]} 56. Kf2 {[%clk 0:00:04]}  g5 {[%clk 0:00:05]} 57. hxg5 {[%clk 0:00:04]}  hxg5 {[%clk 0:00:06]} 58. Ke2 {[%clk 0:00:04]}  Kf7 {[%clk 0:00:06]} 59. Kd3 {[%clk 0:00:05]}  Ke8 {[%clk 0:00:07]} 60. e4 {[%clk 0:00:05]}  f4 {[%clk 0:00:06]} 61. e5 {[%clk 0:00:05]}  Kd7 {[%clk 0:00:06]} 62. Ke4 {[%clk 0:00:05]}  Kc6 {[%clk 0:00:07]} 63. Ne7+ {[%clk 0:00:05]}  Kd7 {[%clk 0:00:07]} 64. Nf5 {[%clk 0:00:06]}  Nc7 {[%clk 0:00:06]} 65. Nd4 {[%clk 0:00:06]}  Na8 {[%clk 0:00:05]} 66. Kf5 {[%clk 0:00:06]}  Nb6 {[%clk 0:00:06]} 67. Kxg5 {[%clk 0:00:06]}  Nd5 {[%clk 0:00:06]} 68. Kf5 {[%clk 0:00:06]}  Nxb4 {[%clk 0:00:06]} 69. Kxf4 {[%clk 0:00:06]}  Nxa2 {[%clk 0:00:06]} 70. Kf5 {[%clk 0:00:06]}  Nb4 {[%clk 0:00:07]} 71. Kf6 {[%clk 0:00:06]}  Nd5+ {[%clk 0:00:05]} 72. Kf7 {[%clk 0:00:06]}  Nc7 {[%clk 0:00:05]} 73. e6+ {[%clk 0:00:05]}  Kd6 {[%clk 0:00:06]} 74. e7 {[%clk 0:00:05]}  Kd7 {[%clk 0:00:06]} 75. Ne6 {[%clk 0:00:04]}  Ne8 {[%clk 0:00:04]} 76. Nf8+ {[%clk 0:00:04]}  Kd6 {[%clk 0:00:04]} 77. Kxe8 {[%clk 0:00:05]}  b4 {[%clk 0:00:05]} 78. Kf7 {[%clk 0:00:05]}  b3 {[%clk 0:00:06]} 79. e8=Q {[%clk 0:00:05]}  Kc5 {[%clk 0:00:07]} 80. Qb8 {[%clk 0:00:05]}  Kc4 {[%clk 0:00:07]} 81. Ne6 {[%clk 0:00:05]}  a5 {[%clk 0:00:08]} 82. Nc7 {[%clk 0:00:05]}  Kc3 {[%clk 0:00:07]} 83. Qb5 {[%clk 0:00:05]}  b2 {[%clk 0:00:08]} 84. Qxa5+ {[%clk 0:00:05]}  Kc2 {[%clk 0:00:08]} 85. Qb4 {[%clk 0:00:05]}  Kd1 {[%clk 0:00:08]} 86. Qxb2 {[%clk 0:00:05]}  Ke1 {[%clk 0:00:09]} 87. f4 {[%clk 0:00:06]}  Kf1 {[%clk 0:00:10]} 88. f5 {[%clk 0:00:06]}  Kg1 {[%clk 0:00:11]} 89. f6 {[%clk 0:00:07]}  Kh1 {[%clk 0:00:12]} 90. Ke7 {[%clk 0:00:07]}  Kg1 {[%clk 0:00:12]} 91. f7 {[%clk 0:00:08]}  Kh1 {[%clk 0:00:13]} 92. f8=Q {[%clk 0:00:08]}  Kg1 {[%clk 0:00:14]} 93. Qa8 {[%clk 0:00:07]}  Kh1 {[%clk 0:00:15]} 94. Qaa1+ {[%clk 0:00:07]}  Kh2 {[%clk 0:00:15]} 95. g4+ {[%clk 0:00:08]}  Kh3 {[%clk 0:00:16]} 96. g5 {[%clk 0:00:09]}  Kh4 {[%clk 0:00:16]} 97. g6 {[%clk 0:00:09]}  Kh5 {[%clk 0:00:17]} 98. g7 {[%clk 0:00:09]}  Kh6 {[%clk 0:00:18]} 99. g8=Q {[%clk 0:00:09]}  Kh5 {[%clk 0:00:18]} 100. Qh1# {[%clk 0:00:09]} 1-0


[Site "https://www.chess.com"]